Workbook

Sheet CONTAS NO CARTÃO NUBANK
A1: MINHAS CONTAS NUBANK - VENCIMENTO TODO DIA 16
B5: JANEIRO | H5: FEVEREIRO | N5: MARÇO | T5: ABRIL | Z5: MAIO | AF5: JUNHO
B6: VENDEDOR | C6: DESCRIÇÃO | D6: RESPONSÁVEL | E6: PARCELA | F6: VALOR | H6: VENDEDOR | I6: DESCRIÇÃO | J6: RESPONSÁVEL | K6: PARCELA | L6: VALOR | N6: VENDEDOR | O6: DESCRIÇÃO | P6: RESPONSÁVEL | Q6: PARCELA | R6: VALOR | T6: VENDEDOR | U6: DESCRIÇÃO | V6: RESPONSÁVEL | W6: PARCELA | X6: VALOR | Z6: VENDEDOR | AA6: DESCRIÇÃO | AB6: RESPONSÁVEL | AC6: PARCELA | AD6: VALOR | AF6: VENDEDOR | AG6: DESCRIÇÃO | AH6: RESPONSÁVEL | AI6: PARCELA | AJ6: VALOR
B7: ELECTROLUX | C7: LAVA-LOUÇAS | D7: RICARDO | E7: 12/12 | F7: =207.43/2 -> 103.715 | Z7: CORRE DE RUA | AA7: TENIS NIKE | AB7: RICARDO | AC7: 5/5 | AD7: 99.19 | AF7: ELECTROLUX | AG7: LAVA-LOUÇAS | AH7: RICARDO | AI7: 5/12 | AJ7: =207.43/2 -> 103.715
B8: ELECTROLUX | C8: LAVA-LOUÇAS | D8: FRAN | E8: 12/12 | F8: =F7 -> 103.715 | Z8: HBOMAX | AA8: ASSINATURA | AB8: RICARDO | AC8: - | AD8: 13.95 | AF8: ELECTROLUX | AG8: LAVA-LOUÇAS | AH8: FRAN | AI8: 5/12 | AJ8: =AJ7 -> 103.715
Z9: ALIEXPRESS | AA9: FECHADURA | AB9: RICARDO | AC9: 10/10 | AD9: =80.89-34 -> 46.89 | AF9: SHOPEE | AG9: PULSEIRAS | AH9: RICARDO | AI9: 3/3 | AJ9: =20.5/2 -> 10.25
Z10: ALIEXPRESS | AA10: FECHADURA | AB10: FRAN | AC10: =AC9 -> 10/10 | AD10: =80.89-46.89 -> 34 | AF10: SHOPEE | AG10: PULSEIRAS | AH10: FRAN | AI10: 3/3 | AJ10: =AJ9 -> 10.25
Z11: ELECTROLUX | AA11: LAVA-LOUÇAS | AB11: RICARDO | AC11: 4/12 | AD11: =207.43/2 -> 103.715 | AF11: SHOPEE | AG11: PULSEIRAS | AH11: RICARDO | AI11: 3/3 | AJ11: =22.67/2 -> 11.335
Z12: ELECTROLUX | AA12: LAVA-LOUÇAS | AB12: FRAN | AC12: 4/12 | AD12: =AD11 -> 103.715 | AF12: SHOPEE | AG12: PULSEIRAS | AH12: FRAN | AI12: 3/3 | AJ12: =AJ11 -> 11.335
Z13: SHOPEE | AA13: PULSEIRAS | AB13: RICARDO | AC13: 2/3 | AD13: =20.5/2 -> 10.25 | AF13: SHOPEE | AG13: PULSEIRAS | AH13: RICARDO | AI13: 3/3 | AJ13: =20.5/2 -> 10.25
Z14: SHOPEE | AA14: PULSEIRAS | AB14: FRAN | AC14: 2/3 | AD14: =AD13 -> 10.25 | AF14: SHOPEE | AG14: PULSEIRAS | AH14: FRAN | AI14: 3/3 | AJ14: =AJ13 -> 10.25
Z15: SHOPEE | AA15: PULSEIRAS | AB15: RICARDO | AC15: 2/3 | AD15: =22.67/2 -> 11.335
Z16: SHOPEE | AA16: PULSEIRAS | AB16: FRAN | AC16: 2/3 | AD16: =AD15 -> 11.335
Z17: SHOPEE | AA17: PULSEIRAS | AB17: RICARDO | AC17: 2/3 | AD17: =20.5/2 -> 10.25
Z18: SHOPEE | AA18: PULSEIRAS | AB18: FRAN | AC18: 2/3 | AD18: =AD17 -> 10.25
D20: TOTAL FRAN | E20: =SUMIF(D6:D19,"FRAN",F6:F19) -> 103.715 | AB20: TOTAL FRAN | AC20: =SUMIF(AB6:AB19,"FRAN",AD6:AD19) -> 169.55 | AH20: TOTAL FRAN | AI20: =SUMIF(AH6:AH19,"FRAN",AJ6:AJ19) -> 135.55
B21: TOTAL CARTÃO | C21: =SUM(F7:F20) -> 207.43 | D21: TOTAL RICARDO | E21: =SUMIF(D7:D20,"ricardo",F7:F20) -> 103.715 | H21: TOTAL CARTÃO | I21: =SUM(L7:L20) -> 0 | J21: TOTAL RICARDO | K21: =SUMIF(J7:J20,"ricardo",L7:L20) -> 0 | N21: TOTAL CARTÃO | O21: =SUM(R7:R20) -> 0 | P21: TOTAL RICARDO | Q21: =SUMIF(P7:P20,"ricardo",R7:R20) -> 0 | T21: TOTAL CARTÃO | U21: =SUM(X7:X20) -> 0 | V21: TOTAL RICARDO | W21: =SUMIF(V7:V20,"ricardo",X7:X20) -> 0 | Z21: TOTAL CARTÃO | AA21: =SUM(AD7:AD20) -> 465.13 | AB21: TOTAL RICARDO | AC21: =SUMIF(AB7:AB20,"ricardo",AD7:AD20) -> 295.58 | AF21: TOTAL CARTÃO | AG21: =SUM(AJ7:AJ20) -> 271.1 | AH21: TOTAL RICARDO | AI21: =SUMIF(AH7:AH20,"ricardo",AJ7:AJ20) -> 135.55
B23: JULHO | H23: AGOSTO | N23: SETEMBRO | T23: OUTUBRO | Z23: NOVEMBRO | AF23: DEZEMBRO
B24: VENDEDOR | C24: DESCRIÇÃO | D24: RESPONSÁVEL | E24: PARCELA | F24: VALOR | H24: VENDEDOR | I24: DESCRIÇÃO | J24: RESPONSÁVEL | K24: PARCELA | L24: VALOR | N24: VENDEDOR | O24: DESCRIÇÃO | P24: RESPONSÁVEL | Q24: PARCELA | R24: VALOR | T24: VENDEDOR | U24: DESCRIÇÃO | V24: RESPONSÁVEL | W24: PARCELA | X24: VALOR | Z24: VENDEDOR | AA24: DESCRIÇÃO | AB24: RESPONSÁVEL | AC24: PARCELA | AD24: VALOR | AF24: VENDEDOR | AG24: DESCRIÇÃO | AH24: RESPONSÁVEL | AI24: PARCELA | AJ24: VALOR
B25: ELECTROLUX | C25: LAVA-LOUÇAS | D25: RICARDO | E25: 6/12 | F25: =207.43/2 -> 103.715 | H25: ELECTROLUX | I25: LAVA-LOUÇAS | J25: RICARDO | K25: 7/12 | L25: =207.43/2 -> 103.715 | N25: ELECTROLUX | O25: LAVA-LOUÇAS | P25: RICARDO | Q25: 8/12 | R25: =207.43/2 -> 103.715 | T25: ELECTROLUX | U25: LAVA-LOUÇAS | V25: RICARDO | W25: 9/12 | X25: =207.43/2 -> 103.715 | Z25: ELECTROLUX | AA25: LAVA-LOUÇAS | AB25: RICARDO | AC25: 10/12 | AD25: =207.43/2 -> 103.715 | AF25: ELECTROLUX | AG25: LAVA-LOUÇAS | AH25: RICARDO | AI25: 11/12 | AJ25: =207.43/2 -> 103.715
B26: ELECTROLUX | C26: LAVA-LOUÇAS | D26: FRAN | E26: 6/12 | F26: =F25 -> 103.715 | H26: ELECTROLUX | I26: LAVA-LOUÇAS | J26: FRAN | K26: 7/12 | L26: =L25 -> 103.715 | N26: ELECTROLUX | O26: LAVA-LOUÇAS | P26: FRAN | Q26: 8/12 | R26: =R25 -> 103.715 | T26: ELECTROLUX | U26: LAVA-LOUÇAS | V26: FRAN | W26: 9/12 | X26: =X25 -> 103.715 | Z26: ELECTROLUX | AA26: LAVA-LOUÇAS | AB26: FRAN | AC26: 10/12 | AD26: =AD25 -> 103.715 | AF26: ELECTROLUX | AG26: LAVA-LOUÇAS | AH26: FRAN | AI26: 11/12 | AJ26: =AJ25 -> 103.715
D47: TOTAL FRAN | E47: =SUMIF(D24:D46,"FRAN",F24:F46) -> 103.715 | J47: TOTAL FRAN | K47: =SUMIF(J24:J46,"FRAN",L24:L46) -> 103.715 | P47: TOTAL FRAN | Q47: =SUMIF(P24:P46,"FRAN",R24:R46) -> 103.715 | V47: TOTAL FRAN | W47: =SUMIF(V24:V46,"FRAN",X24:X46) -> 103.715 | AB47: TOTAL FRAN | AC47: =SUMIF(AB24:AB46,"FRAN",AD24:AD46) -> 103.715 | AH47: TOTAL FRAN | AI47: =SUMIF(AH24:AH46,"FRAN",AJ24:AJ46) -> 103.715
B48: TOTAL CARTÃO | C48: =SUM(F25:F47) -> 207.43 | D48: TOTAL RICARDO | E48: =SUMIF(D25:D47,"ricardo",F25:F47) -> 103.715 | H48: TOTAL CARTÃO | I48: =SUM(L25:L47) -> 207.43 | J48: TOTAL RICARDO | K48: =SUMIF(J25:J47,"ricardo",L25:L47) -> 103.715 | N48: TOTAL CARTÃO | O48: =SUM(R25:R47) -> 207.43 | P48: TOTAL RICARDO | Q48: =SUMIF(P25:P47,"ricardo",R25:R47) -> 103.715 | T48: TOTAL CARTÃO | U48: =SUM(X25:X47) -> 207.43 | V48: TOTAL RICARDO | W48: =SUMIF(V25:V47,"ricardo",X25:X47) -> 103.715 | Z48: TOTAL CARTÃO | AA48: =SUM(AD25:AD47) -> 207.43 | AB48: TOTAL RICARDO | AC48: =SUMIF(AB25:AB47,"ricardo",AD25:AD47) -> 103.715 | AF48: TOTAL CARTÃO | AG48: =SUM(AJ25:AJ47) -> 207.43 | AH48: TOTAL RICARDO | AI48: =SUMIF(AH25:AH47,"ricardo",AJ25:AJ47) -> 103.715
B52: Menck | H52: Psico
B53: Amarela Rio | C53: Azul | D53: Amarela onça | E53: Preta | H53: Amarela onça
B54: T. MENCK | C54: T. MENCK | D54: T. MENCK | E54: T. MENCK | H54: THIAGO
B55: 94 | C55: 8 | D55: 8 | E55: 10 | H55: 7
B56: 120 | C56: 120 | D56: 120 | E56: 120 | H56: Á vista | I56: 120 | J56: NOK
B57: 6x | C57: 6x | D57: 6x | E57: 6x
B58: 1º | C58: 80 | E58: NOK
B59: 2º | C59: 80 | E59: NOK
B60: 3º | C60: 80 | E60: NOK
B61: 4º | C61: 80 | E61: NOK
B62: 5º | C62: 80 | E62: NOK
B63: 6º | C63: 80 | E63: NOK

Sheet SOMA
A5: RICARDO | D5: FRAN | G5: PAI | J5: MÃE | M5: JÉSSICA
A8: TOTAL NU | B8: ='[1]CONTAS NO CARTÃO NUBANK'!AC45 -> 295.58 | D8: TOTAL NU | E8: ='[1]CONTAS NO CARTÃO NUBANK'!AC44 -> 169.55
D9: LUZ | E9: =E18 -> 75
D10: INTERNET | E10: =E22 -> 46.86
D11: ÁGUA | E11: =E25 -> 30.605
A14: TOTAL | B14: =SUM(B6:B13) -> 295.58 | D14: TOTAL | E14: =SUM(E6:E13) -> 322.015
A17: CONTAS MENSAIS | O17: DIA 30 | P17: =K17-H18 -> 0
A18: Dia 03 | B18: Conta de Luz | D18: Débito Aut. | E18: =H22/2 -> 75 | O18: INSS | P18: 811.04
A19: Dia 12 | B19: Fatura Visa | D19: Pagar | E19: =B6 -> 0 | O19: IRPF | P19: 842.16
A20: Dia 16 | B20: Fatura Nubank | D20: Saldo p/ Déb. | E20: =B8 -> 295.58 | O20: Odonto | P20: 16.64
A21: Dia 17 | B21: Fatura Black | D21: Débito Aut. | E21: =B7 -> 0 | O21: Cesta Básica | P21: 62.5
A22: Dia 20 | B22: Internet Casa | D22: Débito Aut. | E22: =H24/2 -> 46.86 | G22: Luz | H22: 150 | O22: Life Safe | P22: =K17*24*0.0001665 -> 0
A23: Dia 20 | B23: Internet Mãe | D23: Pagar | E23: 84 | G23: Água | H23: 61.21 | O23: Outros | P23: 0
A24: Dia 26 | B24: Fatura Vivo | D24: Débito Aut. | E24: 60 | G24: Internet | H24: 93.72
A25: Dia 27 | B25: Conta de Água | D25: Débito Aut. | E25: =H23/2 -> 30.605
A26: Dia 30 | B26: Fundacred | D26: Pagar | E26: ='[1]base de dados'!M23 -> 981.5
